fUSD/lending_fUSD_20241107
["ID","MTS","AMOUNT","RATE_DAILY","PERIOD"]
[341603247,1731021046033,-151.0,0.00027397,7]
[341603248,1731021046040,-500.0,0.00027397,2]
[341603249,1731021046050,-1190.43,0.00027397,2]
[341603250,1731021046060,-500.0,0.00027397,2]
[341603251,1731021046070,-500.0,0.00027397,2]
[341603252,1731021046080,-636.63,0.00027397,2]
[341603253,1731021046092,-500.0,0.00027397,2]
[341603254,1731021046101,-500.0,0.00027397,2]
[341603255,1731021046111,-500.0,0.00027397,2]
[341603256,1731021046120,-610.89,0.00027397,2]
[341603257,1731021046130,-500.0,0.00027397,2]
[341603258,1731021046139,-500.0,0.00027397,2]
[341603259,1731021046148,-500.0,0.00027397,2]
[341603260,1731021046157,-227.72900301,0.00027397,2]
[341603261,1731021046168,-500.0,0.00027397,2]
[341603262,1731021046178,-680.01,0.00027397,2]
[341603263,1731021046188,-500.0,0.00027397,2]
[341603264,1731021046197,-500.0,0.00027397,2]
[341603265,1731021046207,-902.35,0.00027397,2]
[341603266,1731021046217,-737.7,0.00027397,2]
[341603267,1731021046227,-766.71,0.00027397,2]
[341603268,1731021046237,-500.0,0.00027397,2]
[341603269,1731021046247,-500.0,0.00027397,2]
[341603270,1731021046256,-500.0,0.00027397,2]
[341603271,1731021046265,-500.0,0.00027397,2]
[341603272,1731021046274,-513.53,0.00027397,2]
[341603273,1731021046284,-500.0,0.00027397,2]
[341603274,1731021046294,-1287.92,0.00027397,2]
[341603275,1731021046304,-235.57141328,0.00027397,2]
[341603276,1731021046314,-223.51882546,0.00027397,2]
[341603277,1731021046323,-500.0,0.00027397,2]
[341603278,1731021046336,-500.0,0.00027397,2]
[341603279,1731021046345,-500.0,0.00027397,2]
[341603280,1731021046355,-500.0,0.00027397,2]
[341603281,1731021046365,-364.65,0.00027397,2]
[341603282,1731021046374,-500.0,0.00027397,2]
[341603283,1731021046384,-500.0,0.00027397,2]
[341603284,1731021046394,-583.78,0.00027397,2]
[341603285,1731021046404,-1199.73,0.00027397,2]
[341603286,1731021046414,-1659.77,0.00027397,2]
[341603287,1731021046424,-773.93,0.00027397,2]
[341603288,1731021046434,-151.0,0.00027397,7]
[341603289,1731021046444,-342.092731,0.00027397,7]
[341603290,1731021046455,-622.62,0.00027397,2]
[341603291,1731021046465,-500.0,0.00027397,2]
[341603292,1731021046475,-1230.41,0.00027397,2]
[341603293,1731021046484,-151.0,0.00027397,7]
[341603294,1731021046494,-802.73,0.00027397,2]
[341603295,1731021046504,-1199.01,0.00027397,2]
[341603296,1731021046514,-342.092731,0.00027397,7]
[341603297,1731021046523,-500.0,0.00027397,2]
[341603298,1731021046533,-680.78,0.00027397,2]
[341603299,1731021046542,-584.32,0.00027397,2]
[341603300,1731021046552,-500.0,0.00027397,2]
[341603301,1731021046561,-500.0,0.00027397,2]
[341603302,1731021046571,-500.0,0.00027397,2]
[341603303,1731021046581,-151.0,0.00027397,7]
[341603304,1731021046592,-1264.76,0.00027397,2]
[341603305,1731021046602,-780.96,0.00027397,2]
[341603306,1731021046611,-500.0,0.00027397,2]
[341603307,1731021046620,-151.0,0.00027397,7]
[341603308,1731021046630,-500.0,0.00027397,2]
[341603309,1731021046640,-1247.14,0.00027397,2]
[341603310,1731021046650,-14396.91,0.00027397,2]
[341603311,1731021046660,-500.0,0.00027397,2]
[341603312,1731021046670,-500.0,0.00027397,2]
[341603313,1731021046680,-500.0,0.00027397,2]
[341603314,1731021046689,-748.97,0.00027397,2]
[341603315,1731021046699,-500.0,0.00027397,2]
[341603316,1731021046709,-500.0,0.00027397,2]
[341603317,1731021046719,-500.0,0.00027397,2]
[341603318,1731021046729,-623.37,0.00027397,2]
[341603319,1731021046739,-500.0,0.00027397,2]
[341603320,1731021046748,-500.0,0.00027397,2]
[341603321,1731021046758,-552.0010141,0.00027397,2]
[341603322,1731021046768,-500.0,0.00027397,2]
[341603323,1731021046777,-500.0,0.00027397,2]
[341603324,1731021046787,-500.0,0.00027397,2]
[341603325,1731021046796,-500.0,0.00027397,2]
[341603326,1731021046806,-500.0,0.00027397,2]
[341603327,1731021046815,-500.0,0.00027397,2]
[341603328,1731021046825,-500.0,0.00027397,2]
[341603329,1731021046835,-500.0,0.00027397,2]
[341603330,1731021046847,-500.0,0.00027397,2]
[341603331,1731021046857,-500.0,0.00027397,2]
[341603332,1731021046866,-500.0,0.00027397,2]
[341603333,1731021046875,-500.0,0.00027397,2]
[341603334,1731021046885,-595.67,0.00027397,2]
[341603335,1731021046895,-500.0,0.00027397,2]
[341603336,1731021046904,-500.0,0.00027397,2]
[341603337,1731021046913,-500.0,0.00027397,2]
[341603338,1731021046923,-862.5,0.00027397,2]
[341603339,1731021046934,-500.0,0.00027397,2]
[341603340,1731021046944,-151.0,0.00027397,7]
[341603341,1731021046953,-753.14,0.00027397,2]
[341603342,1731021046963,-500.0,0.00027397,2]
[341603343,1731021046972,-500.0,0.00027397,2]
[341603344,1731021046981,-601.33,0.00027397,2]
[341603345,1731021046990,-1417.86,0.00027397,2]
[341603346,1731021046999,-551.45,0.00027397,2]
[341603347,1731021047009,-500.0,0.00027397,2]
[341603348,1731021047018,-500.0,0.00027397,2]
[341603349,1731021047027,-500.0,0.00027397,2]
[341603350,1731021047036,-506.84251862,0.00027397,2]
[341603351,1731021047046,-500.0,0.00027397,2]
[341603352,1731021047056,-601.18,0.00027397,2]
[341603353,1731021047065,-151.0,0.00027397,7]
[341603354,1731021047074,-500.0,0.00027397,2]
[341603355,1731021047085,-500.0,0.00027397,2]
[341603356,1731021047094,-500.0,0.00027397,2]
[341603357,1731021047103,-627.75,0.00027397,2]
[341603358,1731021047113,-500.0,0.00027397,2]
[341603359,1731021047122,-500.0,0.00027397,2]
[341603360,1731021047131,-512.76,0.00027397,2]
[341603361,1731021047141,-554.98,0.00027397,2]
[341603362,1731021047150,-500.0,0.00027397,2]
[341603363,1731021047160,-1797.69,0.00027397,2]
[341603364,1731021047170,-500.0,0.00027397,2]
[341603365,1731021047179,-553.83,0.00027397,2]
[341603366,1731021047189,-666.95,0.00027397,2]
[341603367,1731021047198,-500.0,0.00027397,2]
[341603368,1731021047209,-545.77,0.00027397,2]
[341603369,1731021047219,-2402.04,0.00027397,2]
[341603370,1731021047229,-597.56,0.00027397,2]
[341603371,1731021047239,-151.0,0.00027397,7]
[341603372,1731021047247,-678.24,0.00027397,2]
[341603373,1731021047257,-500.0,0.00027397,2]
[341603374,1731021047266,-696.69,0.00027397,2]
[341603375,1731021047276,-595.46,0.00027397,2]
[341603376,1731021047285,-500.0,0.00027397,2]
[341603377,1731021047294,-625.85,0.00027397,2]
[341603378,1731021047304,-541.68,0.00027397,2]
[341603379,1731021047313,-500.0,0.00027397,2]
[341603380,1731021047322,-500.0,0.00027397,2]
[341603381,1731021047332,-515.53,0.00027397,2]
[341603382,1731021047342,-571.58,0.00027397,2]
[341603383,1731021047352,-500.0,0.00027397,2]
[341603384,1731021047361,-500.0,0.00027397,2]
[341603385,1731021047370,-1178.22,0.00027397,2]
[341603386,1731021047379,-500.0,0.00027397,2]
[341603387,1731021047389,-558.01,0.00027397,2]
[341603388,1731021047399,-500.0,0.00027397,2]
[341603389,1731021047409,-881.04,0.00027397,2]
[341603390,1731021047418,-1058.0,0.00027397,2]
[341603391,1731021047428,-2621.69,0.00027397,2]
[341603392,1731021047437,-2078.13,0.00027397,2]
[341603393,1731021047446,-500.0,0.00027397,2]
[341603394,1731021047456,-494.66928956,0.00027397,2]
[341603395,1731021047466,-1014.81,0.00027397,2]
[341603396,1731021047475,-1231.07,0.00027397,2]
[341603397,1731021047484,-500.0,0.00027397,2]
[341603398,1731021047494,-336.8,0.00027397,2]
[341603399,1731021047503,-500.0,0.00027397,2]
[341603400,1731021047512,-500.0,0.00027397,2]
[341603401,1731021047521,-500.0,0.00027397,2]
[341603402,1731021047531,-500.0,0.00027397,2]
[341603403,1731021047540,-542.3,0.00027397,2]
[341603404,1731021047550,-1745.73,0.00027397,2]
[341603405,1731021047559,-576.12,0.00027397,2]
[341603406,1731021047568,-500.0,0.00027397,2]
[341603407,1731021047579,-975.74,0.00027397,2]
[341603408,1731021047601,-500.0,0.00027397,2]
[341603409,1731021047622,-820.94,0.00027397,2]
[341603410,1731021047637,-500.0,0.00027397,2]
[341603411,1731021047647,-500.0,0.00027397,2]
[341603412,1731021047657,-1442.78,0.00027397,2]
[341603413,1731021047666,-661.86,0.00027397,2]
[341603414,1731021047676,-794.64,0.00027397,2]
[341603415,1731021047685,-500.0,0.00027397,2]
[341603416,1731021047694,-620.49,0.00027397,2]
[341603417,1731021047704,-2281.53,0.00027397,2]
[341603418,1731021047713,-544.55292,0.00027397,7]
[341603419,1731021047723,-2624.98,0.00027397,2]
[341603420,1731021047732,-606.95,0.00027397,2]
[341603421,1731021047742,-544.55292,0.00027397,7]
[341603422,1731021047752,-500.0,0.00027397,2]
[341603423,1731021047761,-500.0,0.00027397,2]
[341603424,1731021047771,-151.0,0.00027397,7]
[341603425,1731021047780,-1327.57331285,0.00027397,120]
[341603426,1731021047789,-1373.299786,0.00027397,7]
[341603427,1731021047799,-500.0,0.00027397,2]
[341603428,1731021047808,-500.0,0.00027397,2]
[341603429,1731021047817,-151.0,0.00027397,7]
[341603430,1731021047826,-1373.299786,0.00027397,7]
[341603431,1731021047840,-799.39,0.00027397,2]
[341603432,1731021047858,-500.0,0.00027397,2]
[341603433,1731021047878,-500.0,0.00027397,2]
[341603434,1731021047897,-500.0,0.00027397,2]
[341603435,1731021047907,-640.47,0.00027397,2]
[341603436,1731021047916,-1493.44,0.00027397,2]
[341603437,1731021047926,-500.0,0.00027397,2]
[341603438,1731021047937,-500.0,0.00027397,2]
[341603439,1731021047946,-500.0,0.00027397,2]
[341603440,1731021047956,-892.32,0.00027397,2]
[341603441,1731021047965,-500.0,0.00027397,2]
[341603442,1731021047976,-562.7,0.00027397,2]
[341603443,1731021047986,-500.0,0.00027397,2]
[341603444,1731021047995,-500.0,0.00027397,2]
[341603445,1731021048005,-500.0,0.00027397,2]
[341603446,1731021048015,-1149.19,0.00027397,2]
[341603447,1731021048024,-500.0,0.00027397,2]
[341603448,1731021048034,-500.0,0.00027397,2]
[341603449,1731021048044,-1048.97,0.00027397,2]
[341603450,1731021048053,-568.1,0.00027397,2]
[341603451,1731021048063,-801.1,0.00027397,2]
[341603452,1731021048072,-500.0,0.00027397,2]
[341603453,1731021048082,-545.24,0.00027397,2]
[341603454,1731021048094,-1193.43,0.00027397,2]
[341603455,1731021048104,-500.0,0.00027397,2]
[341603456,1731021048114,-500.0,0.00027397,2]
[341603457,1731021048124,-151.0,0.00027397,7]
[341603458,1731021048133,-500.0,0.00027397,2]
[341603459,1731021048143,-500.0,0.00027397,2]
[341603460,1731021048153,-685.22,0.00027397,2]
[341603461,1731021048163,-500.0,0.00027397,2]
[341603462,1731021048174,-298.952168,0.00027397,7]
[341603463,1731021048184,-3259.83,0.00027397,2]
[341603464,1731021048194,-1197.55,0.00027397,2]
[341603465,1731021048204,-500.0,0.00027397,2]
[341603466,1731021048213,-1389.9,0.00027397,2]
[341603467,1731021048223,-707.89,0.00027397,2]
[341603468,1731021048232,-500.0,0.00027397,2]
[341603469,1731021048242,-500.0,0.00027397,2]
[341603470,1731021048252,-732.95,0.00027397,2]
[341603471,1731021048262,-500.0,0.00027397,2]
[341603472,1731021048271,-151.0,0.00027397,7]
[341603473,1731021048281,-500.0,0.00027397,2]
[341603474,1731021048291,-151.0,0.00027397,7]
[341603475,1731021048301,-758.93,0.00027397,2]
[341603476,1731021048310,-500.0,0.00027397,2]
[341603477,1731021048320,-500.0,0.00027397,2]
[341603478,1731021048330,-1532.21,0.00027397,2]
[341603479,1731021048344,-500.0,0.00027397,2]
[341603480,1731021048354,-500.0,0.00027397,2]
[341603481,1731021048364,-1797.27,0.00027397,2]
[341603482,1731021048374,-500.0,0.00027397,2]
[341603483,1731021048383,-662.01,0.00027397,2]
[341603484,1731021048393,-151.0,0.00027397,7]
[341603485,1731021048402,-278.52927499,0.00027397,2]
[341603486,1731021048413,-500.0,0.00027397,2]
[341603487,1731021048423,-619.83,0.00027397,2]
[341603488,1731021048432,-488.67837564,0.00027397,2]
[341603489,1731021048441,-546.33,0.00027397,2]
[341603490,1731021048451,-500.0,0.00027397,2]
[341603491,1731021048461,-151.0,0.00027397,7]
[341603492,1731021048470,-500.0,0.00027397,2]
[341603493,1731021048480,-1507.5,0.00027397,2]
[341603494,1731021048489,-642.67,0.00027397,2]
[341603495,1731021048499,-4438.04,0.00027397,2]
[341603496,1731021048508,-500.0,0.00027397,2]
[341603497,1731021048517,-500.0,0.00027397,2]
[341603498,1731021048526,-500.0,0.00027397,2]
[341603499,1731021048536,-500.0,0.00027397,2]
[341603500,1731021048545,-500.0,0.00027397,2]
[341603501,1731021048554,-500.0,0.00027397,2]
[341603502,1731021048563,-500.0,0.00027397,2]
[341603503,1731021048573,-500.0,0.00027397,2]
[341603504,1731021048582,-500.0,0.00027397,2]
[341603505,1731021048602,-2126.46,0.00027397,2]
[341603506,1731021048612,-565.27,0.00027397,2]
[341603507,1731021048621,-764.25,0.00027397,2]
[341603508,1731021048631,-1326.54,0.00027397,2]
[341603509,1731021048640,-724.51,0.00027397,2]
[341603510,1731021048650,-152.408181,0.00027397,7]
[341603511,1731021048659,-500.0,0.00027397,2]
[341603512,1731021048668,-958.2,0.00027397,2]
[341603513,1731021048678,-500.0,0.00027397,2]
[341603514,1731021048687,-500.0,0.00027397,2]
[341603515,1731021048697,-500.0,0.00027397,2]
[341603516,1731021048707,-151.0,0.00027397,7]
[341603517,1731021048716,-151.0,0.00027397,7]
[341603518,1731021048725,-150.0,0.00027418,2]
[341603519,1731021048736,-150.0,0.00027466,2]
[341603520,1731021048745,-150.0,0.00027469,2]
[341603521,1731021048755,-318.25841383,0.00027483,2]
[341603522,1731021048765,-398.0,0.000275,11]
[341603523,1731021048775,-150.0,0.000275,2]
[341603524,1731021048785,-500.0,0.000275,2]
[341603525,1731021048794,-300.0,0.000275,10]
[341603526,1731021048805,-196.0,0.000275,11]
[341603527,1731021048814,-150.0,0.00027512,2]
[341603528,1731021048824,-208.0,0.0002752,30]
[341603529,1731021048835,-150.0,0.00027537,2]
[341603530,1731021048848,-150.0,0.0002754,2]
[341603531,1731021048857,-150.0,0.00027543,2]
[341603532,1731021048866,-261.908994,0.00027558,7]
[341603533,1731021048875,-151.0,0.00027558,7]
[341603534,1731021048885,-153.4092558,0.00027558,2]
[341603535,1731021048895,-8112.5205041,0.00027558,2]
[341603536,1731021048905,-5148.6610009,0.00027558,2]
[341603537,1731021048914,-643.567046,0.00027558,2]
[341603538,1731021048923,-151.27605965,0.00027561,2]
[341603539,1731021048933,-322.21658941,0.00027561,2]
[341603540,1731021048943,-231.495276,0.00027569,7]
[341603541,1731021048953,-165.744636,0.00027569,7]
[341603542,1731021048963,-1283.32,0.00027569,2]
[341603543,1731021048972,-1826.29,0.00027569,2]
[341603544,1731021048982,-151.0,0.0002757,7]
[341603545,1731021048992,-151.0,0.0002757,7]
[341603546,1731021049001,-177.854058,0.0002757,7]
[341603547,1731021049010,-220.90318026,0.0002757,2]
[341603548,1731021049020,-171.57046903,0.00027571,2]
[341603549,1731021049031,-151.0,0.00027577,7]
[341603550,1731021049041,-151.0,0.00027577,7]
[341603551,1731021049051,-151.0,0.00027577,7]
[341603552,1731021049060,-151.0,0.00027586,7]
[341603553,1731021049070,-151.0,0.00027586,7]
[341603554,1731021049079,-151.0,0.00027586,7]
[341603555,1731021049090,-151.0,0.00027586,7]
[341603556,1731021049099,-151.0,0.00027586,7]
[341603557,1731021049109,-678.576695,0.00027586,7]
[341603558,1731021049119,-678.576695,0.00027586,7]
[341603559,1731021049129,-186.30225704,0.00027598,2]
[341603560,1731021049138,-2381.49221216,0.000276,3]
[341603561,1731021049147,-2820.132911,0.000276,2]
[341603562,1731021049157,-4199.45350384,0.000276,2]
[341603563,1731021049377,-503.1,0.00027397,2]
[341603564,1731021049387,-1773.633358,0.000276,2]
[341603565,1731021049398,-622.53429692,0.000276,2]
[341603566,1731021049409,-720.75550823,0.000276,2]
[341603567,1731021049421,-626.35,0.000276,2]
[341603568,1731021049433,-445.045001,0.000276,2]
[341603569,1731021049446,-329.61699944,0.000276,2]
[341603570,1731021049457,-378.8716216,0.000276,2]
[341603571,1731021049473,-339.5935685,0.000276,2]
[341603572,1731021049634,-313.66703268,0.000276,2]
[341603573,1731021050550,-522.56403556,0.00027397,2]
[341603574,1731021050559,-610.69194244,0.00027397,2]
[341603575,1731021050569,-642.99,0.00027397,2]
[341603576,1731021050578,-635.46,0.00027397,2]
[341603577,1731021050588,-500.0,0.00027397,2]
[341603578,1731021050598,-500.0,0.00027397,2]
[341603579,1731021050607,-500.0,0.00027397,2]
[341603580,1731021050617,-19593.43089945,0.000276,2]
[341603581,1731021050627,-600.0,0.000276,10]
[341603582,1731021050636,-151.0,0.000276,7]
[341603583,1731021050645,-151.0,0.000276,7]
[341603584,1731021050655,-151.0,0.000276,7]
[341603585,1731021050664,-640.3638286,0.00027651,2]
[341603586,1731021050674,-184.8802015,0.00027652,2]
[341603587,1731021050683,-216.3511472,0.00027652,2]
[341603588,1731021050692,-536.12903997,0.00027652,2]
[341603589,1731021050703,-9219.91625683,0.00027652,2]
[341603590,1731021050713,-11399.5700895,0.00027652,2]
[341603591,1731021050722,-5114.6336583,0.00027652,2]
[341603592,1731021050732,-5080.6063158,0.00027652,2]
[341603593,1731021050742,-637.1606112,0.00027652,2]
[341603594,1731021050751,-151.0,0.00027652,7]
[341603595,1731021050760,-151.0,0.00027652,7]
[341603596,1731021050769,-158.158502,0.00027652,7]
[341603597,1731021050779,-318.25841383,0.00027669,2]
[341603598,1731021050788,-151.0,0.0002767,7]
[341603599,1731021050798,-1419.14706823,0.00027671,4]
[341603600,1731021050809,-346.76974357,0.00027671,4]
[341603601,1731021050835,-1642.81158692,0.00027671,4]
[341603602,1731021050851,-5800.7172,0.00027671,4]
[341603603,1731021050863,-176786.24766252,0.00027671,4]
[341603604,1731021050879,-3169.65507944,0.00027671,4]
[341603605,1731021050891,-1565.408824,0.00027671,4]
[341603606,1731021050903,-8122.46898233,0.00027671,4]
[341603607,1731021050920,-500.0,0.00027397,2]
[341603608,1731021050930,-1810.28398479,0.00027671,4]
[341603610,1731021096683,156.66,0.00015342,2]
[341603614,1731021241377,300.0,0.00019725,2]
[341603615,1731021290642,1800.0,0.00025,7]
[341603616,1731021388759,1800.0,0.00025,7]
[341603617,1731021486751,161.0,0.000201,2]
[341603618,1731021612234,192.06,0.00015342,2]
[341603622,1731021908880,306130.06003554,0.00016,2]
[341603626,1731021928261,-186.7,0.00025816,120]
[341603627,1731021950122,296.37471427,0.0002,2]
[341603628,1731021955511,20090.88945973,0.0001892,2]
[341603630,1731021992283,-0.01,0.00025816,120]
[341603631,1731021992370,-0.01,0.00027397,120]
[341603632,1731021992393,-2068.38,0.00027397,120]
[341603633,1731022029112,-450.0,0.00021,2]
[341603634,1731022029138,-1540.14980589,0.00021,2]
[341603635,1731022029161,-500.0,0.00023,2]
[341603636,1731022029183,-1326.66,0.00023955,2]
[341603637,1731022029206,-300.0,0.00025,5]
[341603638,1731022029228,-550.0,0.00025,2]
[341603639,1731022029251,-6607.82837631,0.00025,2]
[341603640,1731022042643,893.52999728,0.0002,5]
[341603641,1731022045106,-188.23017071,0.00022,2]
[341603642,1731022071881,3807.22078965,0.0002,2]
[341603643,1731022078545,300.0,0.00018,2]
[341603644,1731022079380,4370.0,0.0002,2]
[341603645,1731022092687,10041.0,0.0002,2]
[341603646,1731022092710,11504.86701543,0.0002,2]
[341603647,1731022105745,6322.13479752,0.0002,2]
[341603654,1731022148196,-47013.57666472,0.00022,2]
[341603655,1731022151110,-27666.47490552,0.00022,2]
[341603656,1731022151134,-1260.32,0.00023673,2]
[341603657,1731022151157,-7299.62566922,0.00023922,2]
[341603658,1731022151179,-147.69668313,0.0002425,2]
[341603659,1731022152090,-1083.30315672,0.0002425,2]
[341603660,1731022152110,-337.28129004,0.0002442,2]
[341603661,1731022152130,-1521.27912124,0.0002445,2]
[341603662,1731022157103,-8623.34896051,0.0002445,2]
[341603663,1731022169642,-478.98,0.00028643,120]
[341603664,1731022169720,-186.71,0.00029044,120]
[341603665,1731022169771,-500.0,0.00029345,120]
[341603666,1731022169798,-500.0,0.00029345,120]
[341603667,1731022169877,-478.98,0.00029345,120]
[341603669,1731022169936,-21.02,0.00029345,120]
[341603670,1731022169946,-165.69,0.00029345,120]
[341603672,1731022169991,-34.31,0.00029345,120]
[341603673,1731022170003,-465.69,0.000297,120]
[341603674,1731022170052,-34.31,0.000297,120]
[341603675,1731022170064,-465.69,0.0003,120]
[341603677,1731022170117,-34.31,0.0003,120]
[341603679,1731022170127,-134.31,0.0003,120]
[341603680,1731022170194,-160.867206,0.00024999,2]
[341603681,1731022170213,-5756.79999422,0.00025,2]
[341603700,1731022232527,-2567.75290929,0.00025,2]
[341603701,1731022232538,-5630.98715691,0.00025,2]
[341603702,1731022232622,-29225.19672952,0.00025,2]
[341603703,1731022232632,-2151.66041293,0.00025,2]
[341603704,1731022232641,-2076.71872242,0.00025,2]
[341603705,1731022232650,-267.44,0.00025259,120]
[341603706,1731022232659,-319.71,0.00025303,2]
[341603707,1731022232669,-250.0,0.00025336,2]
[341603708,1731022232678,-409.67,0.00025367,2]
[341603709,1731022232688,-1352.59,0.00025387,2]
[341603710,1731022232697,-239.6,0.00025422,2]
[341603711,1731022232706,-176.0,0.0002543,2]
[341603712,1731022232716,-6740.87034188,0.00025491,2]
[341603713,1731022232726,-200.0,0.00025524,2]
[341603714,1731022232735,-1000.0,0.00025591,2]
[341603715,1731022232745,-158.13,0.00025591,2]
[341603716,1731022232754,-250.0,0.00025591,2]
[341603717,1731022232764,-23900.0,0.00025591,2]
[341603718,1731022232775,-250.0,0.00025591,2]
[341603719,1731022232785,-319.71,0.0002571,2]
[341603720,1731022232794,-157.03,0.0002577,30]
[341603721,1731022232803,-500.0,0.00025873,2]
[341603722,1731022232813,-670.9626171,0.00025937,2]
[341603723,1731022232826,-589.3573829,0.00025937,2]
[341603724,1731022232836,-6740.87034188,0.00025981,2]
[341603725,1731022232846,-900.0,0.00026,27]
[341603726,1731022232856,-1082.86381749,0.0002605,2]
[341603727,1731022232865,-1082.86381748,0.0002605,2]
[341603728,1731022232875,-176.47,0.00026107,2]
[341603729,1731022232884,-319.71,0.00026117,2]
[341603730,1731022232893,-500.0,0.00026164,7]
[341603731,1731022232904,-500.0,0.00026164,7]
[341603732,1731022232913,-500.0,0.00026164,7]
[341603733,1731022232923,-169.17,0.00026254,2]
[341603734,1731022232933,-8356.73901559,0.000264,2]
[341603735,1731022232942,-6740.87034188,0.00026471,2]
[341603736,1731022232953,-319.71,0.00026523,2]
[341603737,1731022232963,-4433.0,0.000268,2]
[341603738,1731022232972,-200.0,0.000268,9]
[341603739,1731022232982,-32000.0,0.000269,10]
[341603740,1731022232991,-500.0,0.000269,9]
[341603741,1731022233000,-319.71,0.0002693,2]
[341603742,1731022233010,-6740.87034188,0.00026961,2]
[341603743,1731022233020,-500.0,0.00026986,7]
[341603744,1731022233032,-500.0,0.00026986,7]
[341603745,1731022233041,-5000.0,0.00027,2]
[341603746,1731022233051,-900.0,0.00027,28]
[341603747,1731022233061,-300.0,0.00027,5]
[341603748,1731022233071,-600.0,0.00027,2]
[341603749,1731022233080,-2017.9943,0.00027,2]
[341603750,1731022233090,-11166.21362206,0.00027,2]
[341603751,1731022233099,-410.27053642,0.00027,2]
[341603752,1731022233109,-3000.0,0.00027,2]
[341603753,1731022233118,-985.4041524,0.00027,2]
[341603754,1731022233127,-500.0,0.00027096,2]
[341603755,1731022233137,-620.54367675,0.00027096,2]
[341603756,1731022233146,-3548.9615,0.00027097,2]
[341603757,1731022233156,-1000.0,0.00027097,2]
[341603758,1731022233169,-2500.0,0.00027097,2]
[341603759,1731022233179,-5213.0778,0.000271,2]
[341603760,1731022233188,-2042.4565,0.000271,2]
[341603761,1731022233198,-572.8108,0.000271,2]
[341603762,1731022233207,-2448.0,0.00027103,2]
[341603763,1731022233217,-3578.8462,0.00027197,2]
[341603764,1731022233227,-22504.2326,0.00027197,2]
[341603765,1731022233236,-106574.6947,0.00027197,2]
[341603766,1731022233247,-1000.0,0.00027197,2]
[341603767,1731022233257,-14282.8691,0.00027197,2]
[341603768,1731022233267,-150.110806,0.00027198,2]
[341603769,1731022233278,-486.0334,0.000272,2]
[341603770,1731022233288,-220.0,0.00027297,2]
[341603771,1731022233297,-4236.6264,0.00027297,2]
[341603772,1731022233307,-200.0,0.00027297,2]
[341603773,1731022233317,-179.51891775,0.00027297,2]
[341603774,1731022233327,-150.110806,0.00027298,2]
[341603775,1731022233336,-319.71,0.00027336,2]
[341603776,1731022233346,-165.31765802,0.00027373,2]
[341603777,1731022233356,-500.0,0.00027373,2]
[341603778,1731022233365,-688.286,0.00027373,16]
[341603779,1731022233375,-217.05276592,0.00027387,2]
[341603780,1731022233384,-2000.0,0.00027395,5]
[341603781,1731022233394,-10871.89592879,0.00027396,2]
[341603782,1731022233406,-617.63485293,0.00027396,2]
[341603783,1731022233417,-1969.74987323,0.00027396,2]
[341603784,1731022233428,-499.34874343,0.00027396,2]
[341603785,1731022233484,-11762.57128165,0.00027396,2]